[Event "*** SCC Grand Prix: Titled Tuesday Blitz"]
[Site "Chess.com"]
[Date "2020.09.29"]
[Round "1"]
[White "Mazetovic"]
[Black "katchesskat"]
[Result "0-1"]
[WhiteElo "2544"]
[BlackElo "2260"]
[TimeControl "180+1"]
[EndTime "10:07:40 PDT"]
[Termination "katchesskat won on time"]

1. e4 {[%clk 0:02:57.9]} 1... c5 {[%clk 0:02:58.9]} 2. Nf3 {[%clk 0:02:56.5]}
2... e6 {[%clk 0:02:58.3]} 3. c4 {[%clk 0:02:54.6]} 3... a6 {[%clk 0:02:57.9]}
4. Nc3 {[%clk 0:02:51.3]} 4... Qc7 {[%clk 0:02:56.6]} 5. d4 {[%clk 0:02:50.2]}
5... cxd4 {[%clk 0:02:57.5]} 6. Nxd4 {[%clk 0:02:50.1]} 6... b6 {[%clk
0:02:57.4]} 7. Be2 {[%clk 0:02:40.8]} 7... Bb7 {[%clk 0:02:56.6]} 8. f4 {[%clk
0:02:40.7]} 8... d6 {[%clk 0:02:55.9]} 9. O-O {[%clk 0:02:39.2]} 9... Nf6 {[%clk
0:02:55.9]} 10. Bf3 {[%clk 0:02:39]} 10... Nbd7 {[%clk 0:02:56.1]} 11. Be3
{[%clk 0:02:31]} 11... Be7 {[%clk 0:02:55.3]} 12. Rc1 {[%clk 0:02:30.3]} 12...
Rc8 {[%clk 0:02:54.9]} 13. g4 {[%clk 0:02:27.3]} 13... h6 {[%clk 0:02:52.9]} 14.
b3 {[%clk 0:02:19.8]} 14... O-O {[%clk 0:02:52.1]} 15. h4 {[%clk 0:02:19.3]}
15... Nh7 {[%clk 0:02:51.6]} 16. g5 {[%clk 0:02:16.2]} 16... Kh8 {[%clk
0:02:51.6]} 17. g6 {[%clk 0:02:05.7]} 17... fxg6 {[%clk 0:02:25.8]} 18. Nxe6
{[%clk 0:02:05.2]} 18... Qb8 {[%clk 0:02:26.4]} 19. Nxf8 {[%clk 0:02:04.7]}
19... Rxf8 {[%clk 0:02:27.3]} 20. Nd5 {[%clk 0:01:58.5]} 20... Bxh4 {[%clk
0:02:22.1]} 21. Kg2 {[%clk 0:01:52.5]} 21... Qe8 {[%clk 0:02:14.3]} 22. Qd3
{[%clk 0:01:44.2]} 22... Nc5 {[%clk 0:02:12.2]} 23. Bxc5 {[%clk 0:01:43.7]}
23... bxc5 {[%clk 0:02:11.5]} 24. Rh1 {[%clk 0:01:25.3]} 24... Bd8 {[%clk
0:02:07.2]} 25. Rce1 {[%clk 0:00:51.9]} 25... g5 {[%clk 0:01:58.6]} 26. e5
{[%clk 0:00:38]} 26... gxf4 {[%clk 0:01:56.2]} 27. e6 {[%clk 0:00:31.2]} 27...
Bxd5 {[%clk 0:01:51.4]} 28. cxd5 {[%clk 0:00:30.1]} 28... Bf6 {[%clk 0:01:48.3]}
29. Bh5 {[%clk 0:00:19.8]} 29... Qa8 {[%clk 0:01:43.7]} 30. e7 {[%clk
0:00:19.5]} 30... f3+ {[%clk 0:01:36.1]} 31. Kf1 {[%clk 0:00:15.6]} 31... Bxe7
{[%clk 0:01:15.5]} 32. Rxe7 {[%clk 0:00:15.2]} 32... Qd8 {[%clk 0:01:08.2]} 33.
Qe3 {[%clk 0:00:12]} 33... Nf6 {[%clk 0:01:01.6]} 34. Bg6 {[%clk 0:00:11.4]}
34... Ng4 {[%clk 0:00:54.3]} 35. Qe6 {[%clk 0:00:11.2]} 35... Qa5 {[%clk
0:00:45.5]} 36. Qxg4 {[%clk 0:00:08.9]} 36... Qd2 {[%clk 0:00:45.4]} 37. Qe4
{[%clk 0:00:03.4]} 37... Qg2+ {[%clk 0:00:43.2]} 38. Ke1 {[%clk 0:00:03.8]}
38... Qxh1+ {[%clk 0:00:43.4]} 39. Kd2 {[%clk 0:00:03.8]} 39... Qh2+ {[%clk
0:00:39.6]} 40. Kc3 {[%clk 0:00:03.5]} 40... f2 {[%clk 0:00:38]} 41. Re8 {[%clk
0:00:01.8]} 41... Qg3+ {[%clk 0:00:35.8]} 42. Kb2 {[%clk 0:00:01.2]} 42... f1=Q
{[%clk 0:00:26.5]} 43. Qe7 {[%clk 0:00:01.3]} 43... Qe5+ {[%clk 0:00:12.5]} 0-1

[Event "*** SCC Grand Prix: Titled Tuesday Blitz"]
[Site "Chess.com"]
[Date "2020.09.29"]
[Round "1"]
[White "gumimis"]
[Black "Iskusnyh"]
[Result "0-1"]
[WhiteElo "2214"]
[BlackElo "2541"]
[TimeControl "180+1"]
[EndTime "10:07:42 PDT"]
[Termination "Iskusnyh won by checkmate"]

1. e4 {[%clk 0:02:59.1]} 1... e6 {[%clk 0:02:59.3]} 2. d4 {[%clk 0:02:58.6]}
2... d5 {[%clk 0:02:59.7]} 3. Nc3 {[%clk 0:02:59]} 3... Nf6 {[%clk 0:02:57.3]}
4. e5 {[%clk 0:02:59.4]} 4... Nfd7 {[%clk 0:02:56.7]} 5. f4 {[%clk 0:02:59.9]}
5... c5 {[%clk 0:02:57.1]} 6. Nf3 {[%clk 0:03:00.5]} 6... Nc6 {[%clk 0:02:57.3]}
7. Be3 {[%clk 0:03:01.2]} 7... Rb8 {[%clk 0:02:57.7]} 8. Be2 {[%clk 0:02:46.6]}
8... Qa5 {[%clk 0:02:55.9]} 9. O-O {[%clk 0:02:36.2]} 9... b5 {[%clk 0:02:55]}
10. a3 {[%clk 0:02:26.1]} 10... b4 {[%clk 0:02:51.7]} 11. axb4 {[%clk
0:01:44.8]} 11... Qxb4 {[%clk 0:02:50.4]} 12. Na4 {[%clk 0:01:45]} 12... cxd4
{[%clk 0:02:36.4]} 13. Nxd4 {[%clk 0:01:42]} 13... Nxd4 {[%clk 0:02:33.4]} 14.
Bxd4 {[%clk 0:01:35.7]} 14... Be7 {[%clk 0:01:48.8]} 15. f5 {[%clk 0:01:26.4]}
15... exf5 {[%clk 0:01:38.2]} 16. c3 {[%clk 0:01:06.3]} 16... Qb7 {[%clk
0:01:27.6]} 17. Rxf5 {[%clk 0:00:58.2]} 17... O-O {[%clk 0:01:21.5]} 18. Bd3
{[%clk 0:00:52.1]} 18... g6 {[%clk 0:00:53.8]} 19. Rf3 {[%clk 0:00:38.3]} 19...
Qc6 {[%clk 0:00:52.5]} 20. Qd2 {[%clk 0:00:28.5]} 20... Nc5 {[%clk 0:00:48.4]}
21. Nxc5 {[%clk 0:00:22.9]} 21... Bxc5 {[%clk 0:00:47.5]} 22. Rf6 {[%clk
0:00:20.3]} 22... Be6 {[%clk 0:00:40.7]} 23. Ra6 {[%clk 0:00:17]} 23... Bxd4+
{[%clk 0:00:39.4]} 24. cxd4 {[%clk 0:00:17.3]} 24... Qb7 {[%clk 0:00:31.5]} 25.
Qh6 {[%clk 0:00:12.8]} 25... Qxb2 {[%clk 0:00:27.9]} 26. Raxe6 {[%clk
0:00:07.8]} 26... Qxd4+ {[%clk 0:00:26.3]} 27. Kh1 {[%clk 0:00:05]} 27... Qxd3
{[%clk 0:00:25.3]} 28. Rxg6+ {[%clk 0:00:02.5]} 28... fxg6 {[%clk 0:00:23.6]}
29. h3 {[%clk 0:00:02]} 29... Qf5 {[%clk 0:00:18.7]} 30. Re7 {[%clk 0:00:01.9]}
30... Qf1+ {[%clk 0:00:18.1]} 31. Kh2 {[%clk 0:00:01.9]} 31... Qf4+ {[%clk
0:00:18.8]} 32. Qxf4 {[%clk 0:00:02.2]} 32... Rxf4 {[%clk 0:00:19.3]} 33. Rxa7
{[%clk 0:00:03.1]} 33... Rf2 {[%clk 0:00:18.2]} 34. e6 {[%clk 0:00:03.6]} 34...
Re2 {[%clk 0:00:18.2]} 35. e7 {[%clk 0:00:04.5]} 35... Re8 {[%clk 0:00:18.2]}
36. Rd7 {[%clk 0:00:05]} 36... R8xe7 {[%clk 0:00:18.3]} 37. Rxd5 {[%clk
0:00:05.9]} 37... Kg7 {[%clk 0:00:18]} 38. h4 {[%clk 0:00:05.6]} 38... h5 {[%clk
0:00:17.8]} 39. Kh3 {[%clk 0:00:06.2]} 39... R2e3+ {[%clk 0:00:17.8]} 40. g3
{[%clk 0:00:06.4]} 40... Re2 {[%clk 0:00:18]} 41. Rd6 {[%clk 0:00:05.4]} 41...
Rf2 {[%clk 0:00:17.8]} 42. Rd4 {[%clk 0:00:05.4]} 42... Ree2 {[%clk 0:00:17.4]}
43. Rf4 {[%clk 0:00:04]} 43... Rh2# {[%clk 0:00:16.7]} 0-1

[Event "*** SCC Grand Prix: Titled Tuesday Blitz"]
[Site "Chess.com"]
[Date "2020.09.29"]
[Round "1"]
[White "Jadeit90"]
[Black "Margency"]
[Result "0-1"]
[WhiteElo "2320"]
[BlackElo "2642"]
[TimeControl "180+1"]
[EndTime "10:07:44 PDT"]
[Termination "Margency won by resignation"]

1. g3 {[%clk 0:02:57.1]} 1... Nf6 {[%clk 0:02:59.4]} 2. Bg2 {[%clk 0:02:57.6]}
2... g6 {[%clk 0:03:00.2]} 3. c4 {[%clk 0:02:58.1]} 3... Bg7 {[%clk 0:03:00.6]}
4. Nf3 {[%clk 0:02:58.8]} 4... d5 {[%clk 0:02:58.7]} 5. cxd5 {[%clk 0:02:58]}
5... Nxd5 {[%clk 0:02:59.6]} 6. O-O {[%clk 0:02:58.7]} 6... O-O {[%clk
0:02:59.5]} 7. Nc3 {[%clk 0:02:59.2]} 7... Nb6 {[%clk 0:02:59.6]} 8. d3 {[%clk
0:02:59.4]} 8... Nc6 {[%clk 0:02:58.7]} 9. a4 {[%clk 0:02:59.5]} 9... a5 {[%clk
0:02:58.5]} 10. Be3 {[%clk 0:02:59.3]} 10... e5 {[%clk 0:02:58.3]} 11. Qd2
{[%clk 0:02:59.5]} 11... Re8 {[%clk 0:02:58.1]} 12. Bh6 {[%clk 0:02:59]} 12...
Bh8 {[%clk 0:02:57.8]} 13. Rfc1 {[%clk 0:02:56.6]} 13... Nd4 {[%clk 0:02:51.4]}
14. Nxd4 {[%clk 0:02:56.1]} 14... exd4 {[%clk 0:02:51.7]} 15. Ne4 {[%clk
0:02:56.5]} 15... Nd5 {[%clk 0:02:41.5]} 16. Bg5 {[%clk 0:02:51.6]} 16... f6
{[%clk 0:02:41.2]} 17. Bh6 {[%clk 0:02:50.9]} 17... b6 {[%clk 0:02:28.9]} 18.
Rc4 {[%clk 0:02:34]} 18... c5 {[%clk 0:02:28.3]} 19. h4 {[%clk 0:02:27.1]} 19...
Bg4 {[%clk 0:02:11.7]} 20. Bf3 {[%clk 0:02:14.7]} 20... Bxf3 {[%clk 0:01:58.2]}
21. exf3 {[%clk 0:02:15.6]} 21... f5 {[%clk 0:01:57.5]} 22. Ng5 {[%clk
0:02:12.9]} 22... Qf6 {[%clk 0:01:43.7]} 23. Rcc1 {[%clk 0:02:10.2]} 23... Ra7
{[%clk 0:01:35.5]} 24. Re1 {[%clk 0:02:10.1]} 24... Rae7 {[%clk 0:01:36]} 25.
Kg2 {[%clk 0:02:07.3]} 25... Qc6 {[%clk 0:01:32]} 26. Rxe7 {[%clk 0:02:05.7]}
26... Rxe7 {[%clk 0:01:31.8]} 27. Re1 {[%clk 0:02:06.1]} 27... Bf6 {[%clk
0:01:32]} 28. Rxe7 {[%clk 0:02:05.4]} 28... Nxe7 {[%clk 0:01:26.7]} 29. Qe2
{[%clk 0:02:00.9]} 29... Bxg5 {[%clk 0:01:23.3]} 30. Bxg5 {[%clk 0:01:58.8]}
30... Nd5 {[%clk 0:01:23.7]} 31. Qe5 {[%clk 0:01:53.1]} 31... Kf7 {[%clk
0:01:17.7]} 32. h5 {[%clk 0:01:48.9]} 32... Qe6 {[%clk 0:01:08.1]} 33. Qb8
{[%clk 0:01:46.5]} 33... gxh5 {[%clk 0:01:03.3]} 34. Qb7+ {[%clk 0:01:40.6]}
34... Kg6 {[%clk 0:01:03.2]} 35. Bh4 {[%clk 0:01:38.9]} 35... h6 {[%clk
0:00:50.9]} 36. Qb8 {[%clk 0:01:25.3]} 36... Nb4 {[%clk 0:00:40.5]} 37. Bd8
{[%clk 0:01:20.1]} 37... Nxd3 {[%clk 0:00:36.3]} 38. Bxb6 {[%clk 0:01:20.4]}
38... Ne1+ {[%clk 0:00:31.3]} 39. Kf1 {[%clk 0:01:19.6]} 39... Nxf3 {[%clk
0:00:31.4]} 40. Bxc5 {[%clk 0:01:19.1]} 40... h4 {[%clk 0:00:28]} 41. Qf4 {[%clk
0:01:18.2]} 41... Qe4 {[%clk 0:00:14.2]} 42. Qxe4 {[%clk 0:01:08.4]} 42... fxe4
{[%clk 0:00:14.2]} 43. gxh4 {[%clk 0:01:08.7]} 43... d3 {[%clk 0:00:13.2]} 44.
b4 {[%clk 0:01:04.5]} 44... axb4 {[%clk 0:00:12.8]} 45. Bxb4 {[%clk 0:01:05.4]}
45... Nd4 {[%clk 0:00:10.6]} 46. a5 {[%clk 0:01:00.4]} 46... Nb5 {[%clk
0:00:09]} 47. a6 {[%clk 0:01:00.6]} 47... Kf5 {[%clk 0:00:09.1]} 48. Bc5 {[%clk
0:01:00.8]} 48... Nc7 {[%clk 0:00:09.2]} 49. Be3 {[%clk 0:00:45.8]} 49... Nxa6
{[%clk 0:00:07.4]} 50. Bxh6 {[%clk 0:00:45.9]} 50... Kg4 {[%clk 0:00:08.2]} 51.
Be3 {[%clk 0:00:45.8]} 51... Kxh4 {[%clk 0:00:07.6]} 52. Ke1 {[%clk 0:00:44.4]}
52... Kg4 {[%clk 0:00:08]} 53. Kd2 {[%clk 0:00:44.8]} 53... Kf3 {[%clk
0:00:08.7]} 54. Kc3 {[%clk 0:00:45.1]} 54... Nc7 {[%clk 0:00:08.8]} 55. Ba7
{[%clk 0:00:43.1]} 55... Nd5+ {[%clk 0:00:08.5]} 56. Kd2 {[%clk 0:00:40.5]}
56... Nf6 {[%clk 0:00:07.8]} 57. Kc3 {[%clk 0:00:39.7]} 57... Ng4 {[%clk
0:00:07.9]} 58. Kd4 {[%clk 0:00:38.5]} 58... d2 {[%clk 0:00:06.9]} 0-1

[Event "*** SCC Grand Prix: Titled Tuesday Blitz"]
[Site "Chess.com"]
[Date "2020.09.29"]
[Round "1"]
[White "Nikolaj_6"]
[Black "ExtremeLearner"]
[Result "1-0"]
[WhiteElo "2584"]
[BlackElo "2277"]
[TimeControl "180+1"]
[EndTime "10:07:44 PDT"]
[Termination "Nikolaj_6 won by resignation"]

1. e4 {[%clk 0:02:59.3]} 1... c6 {[%clk 0:02:59.1]} 2. d4 {[%clk 0:02:58.8]}
2... d5 {[%clk 0:02:59.5]} 3. e5 {[%clk 0:02:59.3]} 3... Bf5 {[%clk 0:02:59.1]}
4. h4 {[%clk 0:02:58.9]} 4... h5 {[%clk 0:02:51.3]} 5. c4 {[%clk 0:02:57.9]}
5... e6 {[%clk 0:02:49.9]} 6. Nc3 {[%clk 0:02:57.3]} 6... dxc4 {[%clk
0:02:49.5]} 7. Bxc4 {[%clk 0:02:55.7]} 7... Ne7 {[%clk 0:02:42.6]} 8. Nge2
{[%clk 0:02:54.6]} 8... Ng6 {[%clk 0:02:36.4]} 9. Ng3 {[%clk 0:02:10]} 9... Nxh4
{[%clk 0:02:24.6]} 10. O-O {[%clk 0:01:52.7]} 10... Bg6 {[%clk 0:02:02.2]} 11.
Nge4 {[%clk 0:01:43.6]} 11... Nf5 {[%clk 0:01:48.5]} 12. Bg5 {[%clk 0:01:32.9]}
12... Be7 {[%clk 0:01:41]} 13. Bxe7 {[%clk 0:01:31.1]} 13... Qxe7 {[%clk
0:01:41.9]} 14. Qd2 {[%clk 0:01:21.4]} 14... Nd7 {[%clk 0:01:35]} 15. a4 {[%clk
0:01:09.3]} 15... Nb6 {[%clk 0:01:34.3]} 16. Bb3 {[%clk 0:01:09.5]} 16... Rd8
{[%clk 0:01:32.6]} 17. Ne2 {[%clk 0:01:08.3]} 17... Nd5 {[%clk 0:01:29.2]} 18.
N2g3 {[%clk 0:00:58.6]} 18... Nxg3 {[%clk 0:01:23]} 19. Nd6+ {[%clk 0:00:50.6]}
19... Rxd6 {[%clk 0:01:21.4]} 20. exd6 {[%clk 0:00:50.4]} 20... Ne4 {[%clk
0:01:21.4]} 21. Qa5 {[%clk 0:00:38.9]} 21... Nxd6 {[%clk 0:01:13.2]} 22. Bxd5
{[%clk 0:00:37.9]} 22... cxd5 {[%clk 0:01:13.8]} 23. Qxa7 {[%clk 0:00:37.5]}
23... O-O {[%clk 0:01:13.5]} 24. a5 {[%clk 0:00:34.8]} 24... Qg5 {[%clk
0:01:11.7]} 25. Ra3 {[%clk 0:00:30.6]} 25... h4 {[%clk 0:01:08]} 26. Qc5 {[%clk
0:00:29]} 26... Ne4 {[%clk 0:00:58.9]} 27. Qc1 {[%clk 0:00:27.5]} 27... Nd2
{[%clk 0:00:48.6]} 28. Rd1 {[%clk 0:00:23.7]} 28... Be4 {[%clk 0:00:44.4]} 29.
f3 {[%clk 0:00:24]} 29... h3 {[%clk 0:00:33.3]} 30. Qxd2 {[%clk 0:00:21.6]}
30... Qxd2 {[%clk 0:00:21.8]} 31. Rxd2 {[%clk 0:00:21.6]} 31... Bf5 {[%clk
0:00:22.3]} 32. g4 {[%clk 0:00:21.2]} 32... Bg6 {[%clk 0:00:21.5]} 33. Rc3
{[%clk 0:00:20.8]} 33... Ra8 {[%clk 0:00:21.2]} 34. b4 {[%clk 0:00:20.9]} 34...
f6 {[%clk 0:00:20]} 35. Kh2 {[%clk 0:00:20.9]} 35... Bf7 {[%clk 0:00:20.3]} 36.
Kxh3 {[%clk 0:00:21.1]} 36... e5 {[%clk 0:00:20.9]} 37. Rc5 {[%clk 0:00:20.3]}
37... Rd8 {[%clk 0:00:18.5]} 38. b5 {[%clk 0:00:19.8]} 38... e4 {[%clk
0:00:18.2]} 39. Kg3 {[%clk 0:00:18.3]} 39... g6 {[%clk 0:00:13.5]} 40. Kf4
{[%clk 0:00:18.5]} 40... Re8 {[%clk 0:00:11.8]} 41. Re2 {[%clk 0:00:18]} 41...
e3 {[%clk 0:00:10.9]} 42. a6 {[%clk 0:00:16.2]} 42... bxa6 {[%clk 0:00:10.5]}
43. bxa6 {[%clk 0:00:16]} 43... Re6 {[%clk 0:00:10]} 44. Ra5 {[%clk 0:00:15.5]}
44... g5+ {[%clk 0:00:10.2]} 45. Kg3 {[%clk 0:00:15.3]} 45... f5 {[%clk
0:00:09]} 46. gxf5 {[%clk 0:00:14.7]} 46... Re8 {[%clk 0:00:09]} 47. a7 {[%clk
0:00:14.7]} 1-0

[Event "*** SCC Grand Prix: Titled Tuesday Blitz"]
[Site "Chess.com"]
[Date "2020.09.29"]
[Round "1"]
[White "lucachess49"]
[Black "OK97"]
[Result "0-1"]
[WhiteElo "2403"]
[BlackElo "2803"]
[TimeControl "180+1"]
[EndTime "10:07:46 PDT"]
[Termination "OK97 won on time"]

1. d4 {[%clk 0:02:58.1]} 1... Nf6 {[%clk 0:02:59.7]} 2. c4 {[%clk 0:02:56.6]}
2... c5 {[%clk 0:03:00.3]} 3. d5 {[%clk 0:02:56.2]} 3... b5 {[%clk 0:03:00.3]}
4. cxb5 {[%clk 0:02:56.6]} 4... a6 {[%clk 0:03:00.6]} 5. bxa6 {[%clk 0:02:57]}
5... g6 {[%clk 0:03:01.2]} 6. Nc3 {[%clk 0:02:57]} 6... Bg7 {[%clk 0:03:01.8]}
7. e4 {[%clk 0:02:56.5]} 7... O-O {[%clk 0:03:02.1]} 8. Nf3 {[%clk 0:02:48.4]}
8... Qa5 {[%clk 0:03:01.7]} 9. Nd2 {[%clk 0:02:46.5]} 9... Bxa6 {[%clk
0:02:57.5]} 10. Bxa6 {[%clk 0:02:45.6]} 10... Qxa6 {[%clk 0:02:54.2]} 11. a4
{[%clk 0:02:41.3]} 11... e6 {[%clk 0:02:50.6]} 12. Nb5 {[%clk 0:02:40.8]} 12...
Rc8 {[%clk 0:02:33]} 13. dxe6 {[%clk 0:02:36.1]} 13... fxe6 {[%clk 0:02:27.5]}
14. O-O {[%clk 0:02:36.2]} 14... Nc6 {[%clk 0:02:24.9]} 15. Nc4 {[%clk 0:02:22]}
15... d5 {[%clk 0:01:59]} 16. exd5 {[%clk 0:02:20.2]} 16... exd5 {[%clk
0:01:59.9]} 17. Ncd6 {[%clk 0:02:20.7]} 17... Rd8 {[%clk 0:01:47.4]} 18. Bg5
{[%clk 0:02:20.1]} 18... Nb4 {[%clk 0:01:42.9]} 19. Qf3 {[%clk 0:00:28.3]} 19...
Rxd6 {[%clk 0:01:40.7]} 20. Nxd6 {[%clk 0:00:29.2]} 20... Qxd6 {[%clk
0:01:40.5]} 21. Bf4 {[%clk 0:00:27.3]} 21... Qd7 {[%clk 0:01:32.8]} 22. Be5
{[%clk 0:00:25.4]} 22... Ne4 {[%clk 0:01:22.2]} 23. Bxg7 {[%clk 0:00:24.5]}
23... Kxg7 {[%clk 0:01:16.9]} 24. a5 {[%clk 0:00:24.5]} 24... Ra6 {[%clk
0:01:08.5]} 25. Qf4 {[%clk 0:00:23]} 25... Rf6 {[%clk 0:00:53.3]} 26. Qb8 {[%clk
0:00:20.8]} 26... Na6 {[%clk 0:00:49.7]} 27. Qe5 {[%clk 0:00:18.5]} 27... Qe6
{[%clk 0:00:38.9]} 28. Qxe6 {[%clk 0:00:13.3]} 28... Rxe6 {[%clk 0:00:39.8]} 29.
Rfd1 {[%clk 0:00:13]} 29... d4 {[%clk 0:00:34.3]} 30. Re1 {[%clk 0:00:12.7]}
30... Kf7 {[%clk 0:00:31.7]} 31. f3 {[%clk 0:00:10.5]} 31... Nd6 {[%clk
0:00:31.8]} 32. Rxe6 {[%clk 0:00:09.6]} 32... Kxe6 {[%clk 0:00:32.7]} 33. Re1+
{[%clk 0:00:09.9]} 33... Kd5 {[%clk 0:00:27.4]} 34. b3 {[%clk 0:00:10]} 34...
Nb4 {[%clk 0:00:21.2]} 35. Re7 {[%clk 0:00:09.4]} 35... d3 {[%clk 0:00:20.4]}
36. Kf2 {[%clk 0:00:09.2]} 36... Nf5 {[%clk 0:00:20.3]} 37. Rd7+ {[%clk
0:00:07.6]} 37... Kc6 {[%clk 0:00:20.7]} 38. Rxh7 {[%clk 0:00:06.7]} 38... Nd4
{[%clk 0:00:20.6]} 39. Rh6 {[%clk 0:00:02.5]} 39... Nbc2 {[%clk 0:00:13.7]} 40.
Rxg6+ {[%clk 0:00:02.4]} 40... Kb5 {[%clk 0:00:13.9]} 41. Rb6+ {[%clk
0:00:01.1]} 41... Kxa5 {[%clk 0:00:13.9]} 42. Rc6 {[%clk 0:00:01.7]} 42... Kb5
{[%clk 0:00:13.7]} 43. Rd6 {[%clk 0:00:01.5]} 43... d2 {[%clk 0:00:13.9]} 44.
Rxd4 {[%clk 0:00:01.6]} 44... Nxd4 {[%clk 0:00:12.9]} 0-1

[Event "*** SCC Grand Prix: Titled Tuesday Blitz"]
[Site "Chess.com"]
[Date "2020.09.29"]
[Round "1"]
[White "Shota_Azaladze"]
[Black "CrazyMartian"]
[Result "1-0"]
[WhiteElo "2653"]
[BlackElo "2327"]
[TimeControl "180+1"]
[EndTime "10:07:47 PDT"]
[Termination "Shota_Azaladze won on time"]

1. Nf3 {[%clk 0:03:00.9]} 1... d5 {[%clk 0:02:59.5]} 2. g3 {[%clk 0:03:00.7]}
2... Nf6 {[%clk 0:02:55.1]} 3. Bg2 {[%clk 0:03:01.2]} 3... c6 {[%clk 0:02:55]}
4. O-O {[%clk 0:03:01.7]} 4... Bf5 {[%clk 0:02:54]} 5. d3 {[%clk 0:03:02]} 5...
h6 {[%clk 0:02:53.9]} 6. Nbd2 {[%clk 0:03:00.9]} 6... e6 {[%clk 0:02:53.7]} 7.
c4 {[%clk 0:03:00.5]} 7... Nbd7 {[%clk 0:02:50.9]} 8. b3 {[%clk 0:03:00.6]} 8...
Be7 {[%clk 0:02:49.8]} 9. Bb2 {[%clk 0:03:01.1]} 9... O-O {[%clk 0:02:49.2]} 10.
Re1 {[%clk 0:03:01.3]} 10... Bh7 {[%clk 0:02:47.4]} 11. Rc1 {[%clk 0:02:59.6]}
11... a5 {[%clk 0:02:46.4]} 12. a3 {[%clk 0:02:58.6]} 12... Ne8 {[%clk
0:02:39.2]} 13. Qc2 {[%clk 0:02:39.6]} 13... Bf6 {[%clk 0:02:37.1]} 14. Bxf6
{[%clk 0:02:33.1]} 14... Ndxf6 {[%clk 0:02:30.1]} 15. Qb2 {[%clk 0:02:27.2]}
15... Nd6 {[%clk 0:02:23.5]} 16. c5 {[%clk 0:02:22.2]} 16... Nb5 {[%clk
0:02:18.5]} 17. e4 {[%clk 0:01:47.5]} 17... Nd7 {[%clk 0:02:05.5]} 18. b4 {[%clk
0:01:15.6]} 18... axb4 {[%clk 0:02:02.8]} 19. axb4 {[%clk 0:01:16.5]} 19... Ra4
{[%clk 0:01:57.5]} 20. Ra1 {[%clk 0:01:14.1]} 20... Rxa1 {[%clk 0:01:53.6]} 21.
Rxa1 {[%clk 0:01:13.1]} 21... Qc7 {[%clk 0:01:52.8]} 22. Bf1 {[%clk 0:00:58.5]}
22... b6 {[%clk 0:01:41]} 23. exd5 {[%clk 0:00:55.9]} 23... exd5 {[%clk
0:01:36.9]} 24. d4 {[%clk 0:00:55.8]} 24... bxc5 {[%clk 0:01:04.2]} 25. Bxb5
{[%clk 0:00:54.4]} 25... cxb5 {[%clk 0:01:03.1]} 26. dxc5 {[%clk 0:00:54.9]}
26... Bd3 {[%clk 0:01:00.5]} 27. Qd4 {[%clk 0:00:53.5]} 27... Bc4 {[%clk
0:00:52.2]} 28. Re1 {[%clk 0:00:49.4]} 28... Nf6 {[%clk 0:00:47.2]} 29. Nh4
{[%clk 0:00:43.3]} 29... Re8 {[%clk 0:00:43.2]} 30. Rxe8+ {[%clk 0:00:41.9]}
30... Nxe8 {[%clk 0:00:44.1]} 31. Nf5 {[%clk 0:00:42.1]} 31... Qd7 {[%clk
0:00:37.7]} 32. g4 {[%clk 0:00:40.8]} 32... h5 {[%clk 0:00:36.2]} 33. h3 {[%clk
0:00:39.7]} 33... hxg4 {[%clk 0:00:35.7]} 34. hxg4 {[%clk 0:00:36.3]} 34... Qe6
{[%clk 0:00:35.5]} 35. Kg2 {[%clk 0:00:31.9]} 35... g6 {[%clk 0:00:32.3]} 36.
Ne3 {[%clk 0:00:29.3]} 36... Nf6 {[%clk 0:00:28.2]} 37. f3 {[%clk 0:00:28.4]}
37... Nh7 {[%clk 0:00:21.7]} 38. Kf2 {[%clk 0:00:28.2]} 38... Ng5 {[%clk
0:00:20.1]} 39. Kg3 {[%clk 0:00:26.5]} 39... f6 {[%clk 0:00:18.2]} 40. f4 {[%clk
0:00:24.7]} 40... Nf7 {[%clk 0:00:13.6]} 41. f5 {[%clk 0:00:24.2]} 41... Qe5+
{[%clk 0:00:03.5]} 42. Qxe5 {[%clk 0:00:22.2]} 42... Nxe5 {[%clk 0:00:04.4]} 43.
fxg6 {[%clk 0:00:20.8]} 43... Nxg6 {[%clk 0:00:05.3]} 44. Nf3 {[%clk 0:00:20.7]}
44... Ne5 {[%clk 0:00:05.2]} 45. Nd4 {[%clk 0:00:20.3]} 45... Nd3 {[%clk
0:00:04.7]} 46. c6 {[%clk 0:00:20]} 1-0